bitfinex/quotes_ETHUSD_20250726
["timestamp","ask_amount","ask_price","bid_price","bid_amount"]
[1753571664403,3.12926109,3752.4,3752.3,1e-08]
[1753571664774,3.13126109,3752.4,3752.3,1e-08]
[1753571667718,0.4663,3752.4,3752.3,1e-08]
[1753571668218,3.13126109,3752.4,3752.3,1e-08]
[1753571668620,2.66696109,3752.4,3752.3,1e-08]
[1753571668919,3.13126109,3752.4,3752.3,1e-08]
[1753571669122,5.38232203,3752.4,3752.3,1e-08]
[1753571669420,5.51592203,3752.4,3752.3,1e-08]
[1753571669626,8.51592203,3752.4,3752.3,1e-08]
[1753571669938,8.48472973,3752.4,3752.3,1e-08]
[1753571671117,9.03472973,3752.4,3752.3,1e-08]
[1753571675695,8.12602973,3752.4,3752.3,1e-08]
[1753571676090,8.37530876,3752.4,3752.3,1e-08]
[1753571676303,9.03472973,3752.4,3752.3,1e-08]
[1753571676719,9.28399748,3752.4,3752.3,1e-08]
[1753571677723,9.5332165,3752.4,3752.3,1e-08]
[1753571678222,9.28399748,3752.4,3752.3,1e-08]
[1753571679092,9.53315458,3752.4,3752.3,1e-08]
[1753571680335,9.28399748,3752.4,3752.3,1e-08]
[1753571680707,2.66552937,3751.6,3751.5,0.001]
[1753571680894,11.19992937,3751.6,3751.5,0.001]
[1753571681422,12.10862937,3751.6,3751.5,0.001]
[1753571682536,3.21560042,3751.5,3751.4,1e-08]
[1753571682723,4.15799272,3751.5,3751.4,1e-08]
[1753571682892,5.905329,3751.5,3751.4,1e-08]
[1753571683093,5.8741367,3751.5,3751.4,1e-08]
[1753571685408,8.8741367,3751.5,3751.4,1e-08]
[1753571688501,8.4414367,3751.5,3751.4,1e-08]
[1753571689101,7.9629367,3751.5,3751.4,1e-08]
[1753571689739,8.4414367,3751.5,3751.4,1e-08]
[1753571690239,7.9629367,3751.5,3751.4,1e-08]
[1753571690531,12.0129367,3751.5,3751.4,1e-08]
[1753571691354,12.4914367,3751.5,3751.4,1e-08]
[1753571692648,12.9241367,3751.5,3751.4,1e-08]
[1753571699623,19.3281367,3751.5,3751.4,1e-08]
[1753571700182,18.4169367,3751.5,3751.4,1e-08]
[1753571700389,14.3669367,3751.5,3751.4,1e-08]
[1753571700645,18.4169367,3751.5,3751.4,1e-08]
[1753571700934,19.3281367,3751.5,3751.4,1e-08]
[1753571701133,50.1369367,3751.5,3751.4,1e-08]
[1753571701304,50.38590052,3751.5,3751.4,1e-08]
[1753571701644,2.66609789,3750.8,3750.7,0.001]
[1753571701798,10.2493087,3750.8,3750.7,0.001]
[1753571702000,10.3829087,3750.8,3750.7,0.001]
[1753571703392,10.9329087,3750.8,3750.7,1e-08]
[1753571703609,12.6044087,3750.8,3750.7,1e-08]
[1753571703903,42.6044087,3750.8,3750.7,1e-08]
[1753571704727,42.85356659,3750.8,3750.7,1e-08]
[1753571706929,12.85356659,3750.8,3750.7,1e-08]
[1753571707229,43.10274351,3750.8,3750.7,1e-08]
[1753571708026,7.88124351,3750.8,3750.7,0.96070001]
[1753571708234,7.09885578,3750.8,3750.7,0.96070001]
[1753571708435,10.09885578,3750.8,3750.7,0.96070001]
[1753571709246,10.09885578,3750.8,3750.7,0.49580001]
[1753571709418,10.09885578,3750.8,3750.7,1e-08]
[1753571709618,6.04885578,3750.8,3750.7,1e-08]
[1753571709814,10.09885578,3750.8,3750.7,0.96070001]
[1753571710120,10.09885578,3750.8,3750.7,1e-08]
[1753571710350,12.1748298,3750.8,3750.7,1e-08]
[1753571711141,8.1248298,3750.8,3750.7,1e-08]
[1753571711336,11.92534237,3750.8,3750.7,1e-08]
[1753571711540,12.17481333,3750.8,3750.7,1e-08]
[1753571711852,12.65331333,3750.8,3750.7,1e-08]
[1753571712163,13.61204237,3750.8,3750.7,1e-08]
[1753571712843,13.61234496,3750.8,3750.7,1e-08]
[1753571713550,13.61234496,3750.8,3750.7,0.48230001]
[1753571713551,11.12618448,3750.8,3750.7,0.48230001]
[1753571713851,0.002,3751.5,3750.7,0.94540001]
[1753571714038,6.405,3750.9,3750.8,1.7264]
[1753571714244,13.455,3750.9,3750.8,1.7264]
[1753571716432,10.455,3750.9,3750.8,1.7264]
[1753571716631,6.405,3750.9,3750.8,2.17911856]
[1753571716958,6.405,3750.9,3750.8,4.84521645]
[1753571717126,10.455,3750.9,3750.8,2.31271856]
[1753571717329,10.455,3750.9,3750.8,1.86]
[1753571717536,10.455,3750.9,3750.8,0.9146]
[1753571717725,2.66609789,3750.8,3750.7,1e-08]
[1753571718058,6.405,3750.9,3750.7,0.80480001]
[1753571718374,4.049,3750.8,3750.7,3.60456899]
[1753571718571,4.049,3750.8,3750.7,4.23174847]
[1753571719125,6.405,3750.9,3750.8,3.47089789]
[1753571719323,10.454,3750.9,3750.8,3.47089789]
[1753571719530,10.454,3750.9,3750.8,4.41629789]
[1753571721038,10.454,3750.9,3750.8,1.2871]
[1753571722346,10.454,3750.9,3750.8,0.8048]
[1753571722639,10.454,3750.9,3750.7,0.13360001]
[1753571722640,11.531,3750.9,3750.7,1e-08]
[1753571722846,4.22869019,3750.8,3750.7,1e-08]
[1753571723442,3.18329019,3750.8,3750.7,1e-08]
[1753571726978,2.69729019,3750.8,3750.7,1e-08]
[1753571727141,13.25365456,3750.9,3750.7,1e-08]
[1753571728778,6.5386,3750.9,3750.7,1e-08]
[1753571728990,4.049,3750.8,3750.7,1e-08]
[1753571729185,6.5406,3750.9,3750.7,1e-08]
[1753571729479,6.71509789,3750.8,3750.7,1e-08]
[1753571729852,4.049,3750.8,3750.7,0.48230001]
[1753571730174,6.407,3750.9,3750.7,1.72000001]
[1753571730390,4.049,3750.8,3750.7,4.38616899]
[1753571730586,4.049,3750.8,3750.7,3.44076899]
[1753571731162,6.407,3750.9,3750.7,4.38616899]
[1753571731356,4.049,3750.8,3750.7,4.38616899]
[1753571731542,4.049,3750.8,3750.7,3.44076899]
[1753571731942,4.049,3750.8,3750.7,0.77460001]
[1753571732285,4.049,3750.8,3750.7,1.25690001]
[1753571732575,4.0801923,3750.8,3750.7,1e-08]
[1753571732779,7.5661923,3750.8,3750.7,1e-08]
[1753571732958,11.11094244,3750.8,3750.7,1e-08]
[1753571733882,10.62494244,3750.8,3750.7,1e-08]
[1753571734078,9.71509789,3750.8,3750.7,1e-08]
[1753571734685,10.65849789,3750.8,3750.7,1e-08]
[1753571734885,10.79209789,3750.8,3750.7,1e-08]
[1753571735855,11.54439789,3750.8,3750.7,1e-08]
[1753571736290,2.6664787,3750.3,3749.9,0.85920001]
[1753571736487,4.05,3750.2,3749.9,0.85920001]
[1753571736687,4.05,3750.2,3749.9,1.34150001]
[1753571736899,4.0811923,3750.2,3749.9,1.34150001]
[1753571737195,4.0811923,3750.2,3749.9,0.85920001]
[1753571737383,4.05,3750.2,3749.9,0.85920001]
[1753571737690,4.0811923,3750.2,3749.9,0.85920001]
[1753571737855,2.66669938,3750.0,3749.3,0.4823]
[1753571738063,2.66669938,3750.0,3749.1,0.4641]
[1753571738064,4.0801923,3749.9,3749.5,0.1336]
[1753571738608,6.74693007,3749.9,3749.5,0.6159]
[1753571738911,6.71573777,3749.9,3749.5,0.1336]
[1753571739115,7.30673777,3749.9,3749.3,0.1336]
[1753571739263,8.46426948,3749.9,3749.3,0.1336]
[1753571739461,11.95026948,3749.9,3749.2,0.7806]
[1753571739894,11.95026948,3749.9,3749.1,0.001]
[1753571740408,13.18616948,3749.9,3749.8,1e-08]
[1753571741193,2.6675711,3748.8,3748.4,0.43330001]
[1753571741389,2.66766958,3748.6,3748.4,0.43330001]
[1753571741593,4.052,3748.5,3748.3,0.4631]
[1753571741759,4.052,3748.4,3748.2,0.7806]
[1753571742575,4.052,3748.4,3748.3,0.4732]
[1753571743181,4.052,3748.4,3748.3,0.9398]
[1753571743380,4.052,3748.4,3748.3,0.4666]
[1753571743773,4.052,3748.4,3748.3,0.9398]
[1753571744589,6.405,3748.8,3748.3,3.60766432]
[1753571744789,4.052,3748.7,3748.4,0.9398]
[1753571745185,6.405,3748.8,3748.4,0.4732]
[1753571745389,4.051,3748.7,3748.5,0.4666]
[1753571745801,4.051,3748.7,3748.2,3.44853046]
[1753571746019,4.051,3748.7,3748.3,3.60766651]
[1753571746307,4.051,3748.6,3748.4,0.4666]
[1753571746614,4.051,3748.5,3748.4,0.4666]
[1753571747176,6.405,3748.8,3748.4,3.60758906]
[1753571747376,4.051,3748.7,3748.4,0.4732]
[1753571747611,4.051,3748.7,3748.5,0.4666]
[1753571747772,4.051,3748.7,3748.3,2.66786739]
[1753571747971,6.405,3748.8,3748.4,0.4666]
[1753571748203,4.05,3748.7,3748.5,0.4732]
[1753571748378,4.05,3748.7,3748.5,2.66772176]
[1753571748666,4.05,3748.7,3748.6,0.9398]
[1753571748871,6.405,3748.8,3748.6,0.9398]
[1753571749078,4.05,3748.7,3748.6,2.66766259]
[1753571749298,4.05,3748.7,3748.6,3.45636259]
[1753571749504,4.051,3748.7,3748.6,3.45636259]
[1753571749716,4.051,3748.7,3748.6,1.2553]
[1753571750215,4.051,3748.7,3748.3,0.61164731]
[1753571750216,4.051,3748.7,3748.3,1.40034731]
[1753571750375,4.5481,3748.7,3748.6,0.1336]
[1753571751012,4.5481,3748.7,3748.6,0.1346]
[1753571752476,4.051,3748.7,3748.6,0.1346]
[1753571753170,6.405,3748.8,3748.6,0.1346]
[1753571753374,4.051,3748.7,3748.6,0.1346]
[1753571753714,4.5481,3748.7,3748.6,0.1346]
[1753571753871,5.0101923,3748.7,3748.6,0.001]
[1753571754077,4.979,3748.7,3748.6,0.001]
[1753571754277,7.67778373,3748.7,3748.6,0.001]
[1753571754478,4.979,3748.7,3748.6,0.001]
[1753571754685,4.5481,3748.7,3748.6,0.001]
[1753571755208,0.4971,3748.7,3748.6,0.001]
[1753571755511,4.051,3748.7,3748.6,0.001]
[1753571755712,6.405,3748.8,3748.6,0.001]
[1753571756014,4.051,3748.7,3748.6,0.001]
[1753571757203,6.405,3748.8,3748.6,0.001]
[1753571757404,4.051,3748.7,3748.6,0.001]
[1753571757813,4.0821923,3748.7,3748.6,0.001]
[1753571757980,6.74978373,3748.7,3748.6,0.001]
[1753571758178,7.21569143,3748.7,3748.6,0.001]
[1753571758501,7.64659143,3748.7,3748.6,0.001]
[1753571758706,9.41228095,3748.7,3748.6,0.001]
[1753571758907,9.54588095,3748.7,3748.6,0.001]
[1753571763260,2.66816083,3747.9,3747.8,0.001]
[1753571763547,6.85276083,3747.9,3747.8,0.001]
[1753571763756,4.1846,3747.9,3747.8,0.001]
[1753571764103,6.85276083,3747.9,3747.8,0.001]
[1753571764305,7.34986083,3747.9,3747.8,0.001]
[1753571764546,7.78076083,3747.9,3747.8,0.001]
[1753571765711,5.1126,3747.9,3747.8,0.001]
[1753571766730,0.1336,3747.9,3747.8,0.001]
[1753571766906,4.051,3747.9,3747.8,0.4676]
[1753571767102,0.1336,3748.1,3747.8,0.7553]
[1753571767307,4.051,3748.0,3747.8,0.8889]
[1753571767506,4.051,3747.9,3747.8,4.02372402]
[1753571768105,6.405,3748.8,3748.3,2.66786733]
[1753571768327,4.1856,3748.7,3748.4,0.4666]
[1753571768531,7.1856,3748.7,3748.4,0.4666]
[1753571768908,6.405,3748.8,3748.5,0.4666]
[1753571769212,4.052,3748.7,3748.6,0.6002]
[1753571769538,4.052,3748.7,3748.6,3.26779946]
[1753571770236,4.053,3748.7,3748.6,3.26779946]
[1753571770743,6.405,3748.8,3748.7,2.66759143]
[1753571770906,6.405,3748.8,3748.7,3.60739143]
[1753571771225,10.458,3748.8,3748.7,4.37309143]
[1753571771854,10.458,3748.8,3748.7,3.43329143]
[1753571772244,10.458,3748.8,3748.6,0.1336]
[1753571772430,1.9819923,3748.7,3748.3,0.1336]
[1753571772745,4.055,3748.6,3748.3,0.1336]
[1753571772966,4.055,3748.6,3748.4,0.001]
[1753571773125,0.905,3748.5,3748.4,0.001]
[1753571773315,0.9361923,3748.5,3748.4,0.001]
[1753571774143,2.0111182,3748.5,3748.4,0.001]
[1753571774358,4.67885196,3748.5,3748.4,0.001]
[1753571775648,5.49705196,3748.5,3748.4,0.001]
[1753571775852,5.46585966,3748.5,3748.4,0.001]
[1753571778459,2.7981259,3748.5,3748.4,0.001]
[1753571778672,4.21215966,3748.5,3748.4,0.001]
[1753571778965,9.00855196,3748.5,3748.4,0.001]
[1753571779261,8.97735966,3748.5,3748.4,0.001]
[1753571780062,2.66806789,3748.1,3747.3,0.7777]
[1753571780263,2.66844563,3747.5,3747.4,0.1336]
[1753571780428,6.72244563,3747.5,3747.4,0.1336]
[1753571781882,6.72246703,3747.5,3746.9,0.7787]
[1753571782040,3.13801683,3747.4,3747.1,0.1336]
[1753571782232,4.054,3747.3,3747.1,0.1336]
[1753571783472,4.054,3747.3,3747.1,0.6093]
[1753571784251,4.054,3747.3,3747.1,0.1336]
[1753571784437,6.72261765,3747.3,3747.1,0.1336]
[1753571785076,4.054,3747.3,3747.1,0.1336]
[1753571786340,2.66865926,3747.2,3746.9,0.7787]
[1753571786559,4.054,3747.1,3746.9,0.9123]
[1753571786960,4.054,3747.1,3746.9,0.1346]
[1753571787677,4.054,3747.1,3746.9,0.6103]
[1753571788937,4.054,3747.1,3746.9,0.1346]
[1753571794077,0.1336,3747.4,3747.0,1.7508]
[1753571794282,4.052,3747.3,3747.1,3.59067665]
[1753571794482,4.052,3747.3,3747.2,0.6093]
[1753571794693,6.409,3747.5,3747.3,2.66858667]
[1753571794852,6.409,3747.5,3747.4,3.14421683]
[1753571795055,10.462,3747.5,3747.4,3.72411683]
[1753571795374,6.409,3747.5,3747.4,4.55291683]
[1753571795577,10.462,3747.5,3747.4,4.55291683]
[1753571796205,0.1336,3748.0,3747.5,2.66844563]
[1753571796355,0.002,3748.6,3748.4,2.66777518]
[1753571796549,4.062,3748.5,3748.0,3.52350548]
[1753571796785,4.062,3748.5,3748.3,2.80143895]
[1753571797463,0.002,3748.6,3748.5,2.66773376]
[1753571797671,4.065,3748.6,3748.5,3.49653376]
[1753571797864,4.065,3748.6,3748.5,3.63013376]
[1753571798199,4.065,3748.6,3748.5,4.10583376]
[1753571799490,4.065,3748.6,3748.5,0.9624]
[1753571799666,4.065,3748.6,3748.5,0.1336]
[1753571801592,4.065,3748.6,3748.5,2.80133376]
[1753571803781,4.065,3748.6,3748.5,0.1336]
[1753571805296,4.065,3748.6,3748.5,2.80133376]
[1753571805461,4.065,3748.6,3748.5,0.1336]
[1753571808399,0.002,3748.6,3748.5,2.80133376]
[1753571808717,4.059,3748.6,3748.5,4.33802047]
[1753571808889,4.059,3748.6,3748.5,5.10282047]
[1753571812494,4.059,3748.6,3748.5,4.19522047]
[1753571814214,4.059,3748.6,3748.5,2.80133376]
[1753571814713,4.5398,3748.6,3748.5,2.80133376]
[1753571815473,4.059,3748.6,3748.5,2.80133376]
[1753571820636,4.054,3748.6,3748.5,2.80133376]
[1753571821344,4.054,3748.6,3748.5,3.70893376]
[1753571821637,4.054,3748.6,3748.5,4.73941316]
[1753571822764,4.053,3748.6,3748.5,4.73941316]
[1753571823110,4.053,3748.6,3748.5,3.83181316]
[1753571823309,4.053,3748.6,3748.5,2.80133376]
[1753571823506,4.9618,3748.6,3748.5,0.1336]
[1753571823764,4.9618,3748.6,3748.5,2.80133376]
[1753571824128,0.002,3748.6,3748.5,3.26723376]
[1753571824433,4.054,3748.6,3748.5,3.26723376]
[1753571825746,4.054,3748.6,3748.5,2.80133376]
[1753571826554,0.002,3748.6,3748.5,2.80133376]
[1753571826715,4.9628,3748.6,3748.5,0.1336]
[1753571826915,4.9628,3748.6,3748.5,2.80133376]
[1753571829749,4.9628,3748.6,3748.5,0.1336]
[1753571830053,4.5348,3748.6,3748.5,2.80133376]
[1753571830415,6.88288,3748.6,3748.4,0.001]
[1753571830646,0.9088,3748.5,3748.4,0.001]
[1753571831027,3.57653376,3748.5,3748.4,0.001]
[1753571832357,4.5318,3748.5,3748.4,0.001]
[1753571832568,4.9976,3748.5,3748.4,0.1346]
[1753571833450,8.51053017,3748.5,3748.4,0.1346]
[1753571833654,8.51053017,3748.5,3748.4,0.001]
[1753571835518,0.84519641,3748.5,3748.4,0.001]
[1753571835756,4.5328,3748.5,3748.4,0.001]
[1753571835990,4.9986,3748.5,3748.4,0.001]
[1753571836885,7.66633376,3748.5,3748.4,0.001]
[1753571837050,4.9986,3748.5,3748.4,0.001]
[1753571838350,4.5328,3748.5,3748.4,0.001]
[1753571838554,4.053,3748.5,3748.4,0.001]
[1753571839373,0.002,3748.6,3748.4,0.001]
[1753571839606,4.053,3748.5,3748.4,0.001]
[1753571840855,4.5328,3748.5,3748.4,0.001]
[1753571841957,0.002,3748.6,3748.4,0.001]
[1753571842156,4.5318,3748.5,3748.4,0.001]
[1753571843649,4.9976,3748.5,3748.4,0.001]
[1753571845288,9.2463504,3748.5,3748.4,0.001]
[1753571845590,6.54742434,3748.5,3748.4,0.001]
[1753571845755,9.2151581,3748.5,3748.4,0.001]
[1753571846157,9.3487581,3748.5,3748.4,0.001]
[1753571846557,12.3487581,3748.5,3748.4,0.001]
[1753571850059,7.3511581,3748.5,3748.4,0.001]
[1753571850263,12.3487581,3748.5,3748.4,0.001]
[1753571850473,0.90052434,3748.5,3748.4,0.001]
[1753571850673,0.002,3748.6,3748.4,0.9155]
[1753571850859,4.059,3748.5,3748.4,0.4381]
[1753571851261,4.059,3748.5,3748.4,3.10590493]
[1753571851468,4.059,3748.5,3748.4,3.58330493]
[1753571851866,4.059,3748.5,3748.4,0.9155]
[1753571852698,4.059,3748.5,3748.4,0.4784]
[1753571853274,4.058,3748.5,3748.4,0.9155]
[1753571853474,0.002,3748.6,3748.5,2.66773376]
[1753571853798,4.06,3748.6,3748.5,3.14513376]
[1753571853961,4.06,3748.6,3748.5,0.4774]
[1753571854395,4.06,3748.6,3748.5,3.14513376]
[1753571856901,4.06,3748.6,3748.5,0.4774]
[1753571857868,4.06,3748.6,3748.4,0.001]
[1753571858909,4.8112,3748.6,3748.4,0.001]
[1753571859086,0.9456,3748.5,3748.4,0.001]
[1753571860535,4.22040606,3748.5,3748.4,0.001]
[1753571861338,7.97160606,3748.5,3748.4,0.001]
[1753571861625,7.94041376,3748.5,3748.4,0.001]
[1753571866887,11.99941376,3748.5,3748.4,0.001]
[1753571868629,6.99481376,3748.5,3748.4,0.001]
[1753571868836,11.97601376,3748.5,3748.4,0.001]
[1753571869836,12.7745949,3748.5,3748.4,0.001]
[1753571870846,42.7745949,3748.5,3748.4,1e-08]
[1753571871325,12.7745949,3748.5,3748.4,1e-08]
[1753571871494,42.97826155,3748.5,3748.4,1e-08]
[1753571872343,43.22662065,3748.5,3748.4,1e-08]
[1753571872543,42.97803951,3748.5,3748.4,1e-08]
[1753571872761,42.9779577,3748.5,3748.4,1e-08]
[1753571875011,43.22613124,3748.5,3748.4,1e-08]
[1753571875652,44.82513124,3748.5,3748.4,1e-08]
[1753571876141,47.63113124,3748.5,3748.4,1e-08]
[1753571876530,2.66894416,3746.8,3746.7,0.4577]
[1753571876842,2.66894416,3746.8,3746.5,1.2398]
[1753571876843,2.6690154,3746.7,3746.6,0.4577]
[1753571877207,2.6690154,3746.7,3746.6,0.9083]
[1753571879147,6.86056744,3746.8,3746.6,0.9083]
[1753571879516,6.86056744,3746.8,3746.6,0.4506]
[1753571879740,2.66922912,3746.4,3746.3,0.10510987]
[1753571879945,2.66922912,3746.4,3746.3,0.56280987]
[1753571879946,4.058,3746.4,3746.3,0.56280987]
[1753571880239,4.058,3746.4,3746.3,0.10510987]
[1753571880449,4.058,3746.4,3746.3,0.55570987]
[1753571880653,4.058,3746.4,3746.3,1.01340987]
[1753571881847,4.059,3746.4,3746.3,1.20350086]
[1753571882048,4.059,3746.4,3746.3,3.68271024]
[1753571882349,6.409,3747.0,3746.9,2.66887293]
[1753571882521,10.479,3747.0,3746.9,1.6622]
[1753571882723,6.409,3747.0,3746.9,1.6622]
[1753571883045,10.479,3747.0,3746.9,4.33107293]
[1753571883844,10.478,3747.0,3746.9,4.33107293]
[1753571884143,6.409,3747.0,3746.9,4.33107293]
[1753571884348,6.409,3747.0,3746.9,5.03108071]
[1753571884549,10.478,3747.0,3746.9,5.03108071]
[1753571885048,10.479,3747.0,3746.9,5.03108071]
[1753571885975,10.479,3747.0,3746.9,0.7539]
[1753571886742,10.479,3747.0,3746.6,0.8212]
[1753571886928,10.9352,3747.0,3746.6,0.8212]
[1753571887529,10.479,3747.0,3746.6,0.8212]
[1753571888649,0.0311923,3746.9,3746.6,0.8212]
[1753571888858,4.071,3746.8,3746.4,1.2202]
[1753571889919,0.0311923,3746.7,3746.3,0.10510987]
[1753571890119,4.07,3746.6,3746.3,0.10510987]
[1753571891349,0.9222,3746.5,3746.3,0.10510987]
[1753571891564,4.07,3746.4,3746.3,0.10510987]
[1753571892166,7.66142912,3746.4,3746.3,0.10510987]
[1753571892457,7.32902912,3746.4,3746.3,0.10510987]
[1753571893223,8.43207703,3746.4,3746.3,0.10510987]
[1753571893530,12.50207703,3746.4,3746.3,0.10510987]
[1753571895119,5.66958541,3745.9,3745.8,0.001]
[1753571895324,9.73958541,3745.9,3745.8,0.001]
[1753571895526,11.90868944,3745.9,3745.8,0.001]
[1753571896054,13.25468944,3745.9,3745.8,0.001]
[1753571897292,12.71368944,3745.9,3745.8,1e-08]
[1753571897425,7.079,3745.9,3745.8,1e-08]
[1753571897631,7.079,3745.9,3745.8,0.45930001]
[1753571897866,4.079,3745.9,3745.8,1.71770001]
[1753571898432,0.796,3746.8,3746.0,2.66947841]
[1753571898733,7.086,3746.7,3746.1,0.9048]
[1753571898945,7.086,3746.7,3746.2,3.12866874]
[1753571899240,3.12580142,3747.1,3746.2,2.66936874]
[1753571899445,4.086,3746.9,3746.4,0.8179]
[1753571899762,4.086,3746.9,3746.5,0.9048]
[1753571899931,4.1171923,3746.9,3746.5,0.9048]
[1753571900135,4.1171923,3746.9,3746.5,0.4593]
[1753571900736,4.086,3746.9,3746.6,0.4593]
[1753571900932,4.086,3746.9,3746.7,0.4593]
[1753571901269,7.086,3746.9,3746.8,0.4593]
[1753571901764,4.086,3746.9,3746.8,4.39164416]
[1753571901965,0.8043,3748.2,3746.8,2.74416228]
[1753571902141,4.088,3748.1,3747.6,0.8179]
[1753571902344,3.0,3747.9,3747.6,1.2772]
[1753571902670,4.088,3747.8,3747.6,1.2772]
[1753571904634,4.088,3747.8,3747.7,0.9048]
[1753571904976,4.088,3747.8,3747.7,3.57310322]
[1753571905141,4.088,3747.8,3747.7,3.70670322]
[1753571905540,4.088,3747.8,3747.7,3.26120322]
[1753571905965,4.088,3747.8,3747.7,0.5929]
[1753571908689,4.088,3747.8,3747.7,3.26120322]
[1753571908984,4.088,3747.8,3747.7,0.1336]
[1753571912100,4.088,3747.8,3747.7,2.80190322]
[1753571912763,4.088,3747.8,3747.7,0.1336]
[1753571913467,4.088,3747.8,3747.7,3.47667136]
[1753571913673,4.088,3747.8,3747.7,4.38147136]
[1753571914095,4.081,3748.0,3747.9,2.6681524]
[1753571914282,4.081,3748.0,3747.9,3.5729524]
[1753571914476,4.081,3748.0,3747.9,3.7065524]
[1753571914678,4.081,3748.0,3747.9,3.2610524]
[1753571915575,0.002,3748.5,3747.9,2.59895238]
[1753571915789,4.082,3748.4,3748.1,2.6679682]
[1753571915975,4.082,3748.4,3748.2,2.66794216]
[1753571916179,4.082,3748.4,3748.3,0.1336]
[1753571916563,4.082,3748.4,3748.3,2.8014761]
[1753571916865,4.082,3748.4,3748.3,0.1336]
[1753571917086,4.082,3748.4,3748.3,2.8014761]
[1753571917407,0.002,3748.5,3748.4,3.44160493]
[1753571917605,0.002,3748.5,3748.4,4.34640493]
[1753571917809,0.002,3748.5,3748.4,4.37308297]
[1753571918383,0.002,3748.5,3748.4,4.34640493]
[1753571920111,0.002,3748.5,3748.4,4.37308297]
[1753571920279,0.002,3748.5,3748.4,5.55798878]
[1753571920480,0.002,3748.5,3748.4,5.53131074]
[1753571921514,0.002,3748.5,3748.4,5.08581074]
[1753571922515,0.002,3748.5,3748.4,9.19548878]
[1753571922712,0.002,3748.5,3748.4,9.16881074]
[1753571923628,0.002,3748.5,3748.4,5.08581074]
[1753571923914,0.9009,3748.5,3748.3,0.1336]
[1753571924081,0.4593,3748.5,3748.4,2.66780493]
[1753571924487,0.002,3748.5,3748.3,2.80145728]
[1753571924704,0.4573,3748.4,3748.3,0.1336]
[1753571925998,0.4573,3748.4,3748.3,2.8014761]
[1753571926515,0.002,3748.5,3748.3,2.8014761]
[1753571926720,0.002,3748.5,3748.4,2.66780493]
[1753571928619,0.002,3748.5,3748.3,2.80145449]
[1753571929188,0.4593,3748.5,3748.3,2.80145449]
[1753571929709,0.9009,3748.5,3748.3,2.80145449]
[1753571929936,0.8989,3748.4,3748.3,0.1336]
[1753571930103,1.74392106,3748.4,3748.2,0.1336]
[1753571930300,4.8816,3748.5,3748.2,0.1336]
[1753571930301,0.8989,3748.3,3748.2,0.1336]
[1753571932445,0.8989,3748.3,3747.5,2.66838582]
[1753571932621,3.59803958,3748.2,3747.8,0.1336]
[1753571932823,0.63995048,3748.1,3747.8,0.1336]
[1753571933023,4.079,3748.0,3747.8,0.1336]
[1753571933339,0.8989,3747.9,3747.8,0.1336]
[1753571933541,2.66823202,3747.8,3747.0,0.8048]
[1753571933706,2.66823202,3747.8,3746.7,0.4997]
[1753571933707,1.74679243,3747.7,3747.3,0.1336]
[1753571934221,0.4416,3747.6,3747.3,0.1336]
[1753571934421,4.08,3747.5,3747.3,0.1336]
[1753571934617,0.8989,3747.4,3747.3,0.1336]
[1753571934946,0.4573,3747.4,3747.3,0.1336]
[1753571935308,0.8989,3747.4,3747.3,0.1336]
[1753571935733,5.13685744,3747.4,3746.7,2.66900888]
[1753571935937,0.8989,3747.3,3747.0,0.1336]
[1753571936547,0.8989,3747.2,3747.0,0.1336]
[1753571936742,4.08,3747.1,3747.0,0.1336]
[1753571937045,4.9789,3747.1,3747.0,0.1336]
[1753571938635,4.5373,3747.1,3747.0,0.1336]
[1753571939131,4.08,3747.1,3747.0,2.8024017]
[1753571942544,4.5216,3747.1,3747.0,0.1336]
[1753571942749,4.9789,3747.1,3747.0,0.1336]
[1753571944349,4.5373,3747.1,3747.0,0.1336]
[1753571945718,4.08,3747.1,3747.0,0.1336]
[1753571947755,4.08,3747.1,3747.0,2.8024017]
[1753571948358,4.08,3747.1,3747.0,0.1336]
[1753571948721,4.08,3747.1,3747.0,2.8024017]
[1753571949021,4.08,3747.1,3747.0,0.1336]
[1753571949222,4.08,3747.1,3747.0,3.3021017]
[1753571949670,0.4573,3748.1,3747.0,5.2203535]
[1753571949823,3.0,3747.9,3747.4,2.66851683]
[1753571950146,4.077,3748.0,3747.7,0.1336]
[1753571950322,4.077,3748.0,3747.9,2.66816083]
[1753571950530,4.077,3748.0,3747.9,2.80176083]
[1753571952979,4.077,3748.0,3747.9,0.1336]
[1753571953885,4.077,3748.0,3747.9,2.80176083]
[1753571954579,4.077,3748.0,3747.9,3.29846083]
[1753571954785,4.077,3748.0,3747.9,3.52366652]
[1753571955084,4.077,3748.0,3747.9,4.02036652]
[1753571955379,4.077,3748.0,3747.9,2.80176083]
[1753571956876,4.077,3748.0,3747.9,3.29846083]
[1753571957055,0.002,3748.5,3748.3,0.8147]
[1753571957251,0.002,3748.5,3748.4,2.66780493]
[1753571957553,4.077,3748.5,3748.4,3.91581803]
[1753571957988,4.077,3748.5,3748.4,3.41911803]
[1753571958784,5.0275,3748.5,3748.4,2.80140493]
[1753571959486,4.077,3748.5,3748.4,0.1336]
[1753571959656,5.0275,3748.5,3748.4,0.1336]
[1753571959984,4.5677,3748.5,3748.4,0.1336]
[1753571960588,5.0275,3748.5,3748.4,0.1336]
[1753571960886,5.60898,3748.5,3747.9,2.66810111]
[1753571961195,0.9505,3748.4,3748.2,0.1336]
[1753571961565,0.9505,3748.3,3748.2,0.1336]